[Event "Early Titled Tuesday Blitz | February 8 2022"]
[White "Dounis, Alexandros"]
[Black "Mosutha, Thuso"]
[WhiteFideId "4213238"]
[BlackFideId "11302550"]
[WhiteElo "2195"]
[BlackElo "2028"]
[Result "1-0"]
[Round "02"]
[TimeControl "180+1"]
[Date "2022.02.08"]
[WhiteClock "0:00:52"]
[BlackClock "0:00:02"]

1. Nf3 {[%clk 0:03:00]}  Nf6 {[%clk 0:02:58]} 2. g3 {[%clk 0:03:01]}  d5 {[%clk 0:02:59]} 3. Bg2 {[%clk 0:03:02]}  Bf5 {[%clk 0:02:59]} 4. O-O {[%clk 0:03:03]}  e6 {[%clk 0:02:59]} 5. d3 {[%clk 0:03:01]}  c5 {[%clk 0:02:59]} 6. c4 {[%clk 0:02:59]}  Be7 {[%clk 0:02:57]} 7. Nh4 {[%clk 0:02:56]}  Bg6 {[%clk 0:02:56]} 8. Nxg6 {[%clk 0:02:56]}  hxg6 {[%clk 0:02:57]} 9. Nc3 {[%clk 0:02:56]}  Nc6 {[%clk 0:02:41]} 10. cxd5 {[%clk 0:02:51]}  Nxd5 {[%clk 0:02:41]} 11. Nxd5 {[%clk 0:02:49]}  exd5 {[%clk 0:02:42]} 12. Qb3 {[%clk 0:02:49]}  Nd4 {[%clk 0:02:38]} 13. Qxb7 {[%clk 0:02:46]}  Nxe2+ {[%clk 0:02:37]} 14. Kh1 {[%clk 0:02:46]}  Nxc1 {[%clk 0:02:19]} 15. Raxc1 {[%clk 0:02:45]}  O-O {[%clk 0:02:19]} 16. Qxd5 {[%clk 0:02:40]}  Qb6 {[%clk 0:02:18]} 17. b3 {[%clk 0:02:37]}  Rad8 {[%clk 0:02:18]} 18. Qe4 {[%clk 0:02:29]}  Bf6 {[%clk 0:02:17]} 19. Rfe1 {[%clk 0:02:20]}  Qa5 {[%clk 0:02:15]} 20. Re2 {[%clk 0:02:16]}  Rd4 {[%clk 0:02:14]} 21. Qe3 {[%clk 0:02:08]}  Rfd8 {[%clk 0:02:12]} 22. h4 {[%clk 0:02:03]}  Rxd3 {[%clk 0:02:08]} 23. Qxc5 {[%clk 0:02:01]}  Rd1+ {[%clk 0:01:54]} 24. Kh2 {[%clk 0:02:00]}  Qxc5 {[%clk 0:01:28]} 25. Rxc5 {[%clk 0:02:00]}  R1d2 {[%clk 0:01:24]} 26. Rc2 {[%clk 0:01:56]}  Rd1 {[%clk 0:01:24]} 27. Be4 {[%clk 0:01:50]}  Rf1 {[%clk 0:01:10]} 28. Kg2 {[%clk 0:01:49]}  Ra1 {[%clk 0:01:03]} 29. Rc7 {[%clk 0:01:46]}  a5 {[%clk 0:00:57]} 30. Ra7 {[%clk 0:01:41]}  Bc3 {[%clk 0:00:55]} 31. Rc2 {[%clk 0:01:39]}  Bb4 {[%clk 0:00:52]} 32. Rcc7 {[%clk 0:01:39]}  Rxa2 {[%clk 0:00:36]} 33. Rxf7 {[%clk 0:01:37]}  Bc3 {[%clk 0:00:36]} 34. Bxg6 {[%clk 0:01:30]}  Bf6 {[%clk 0:00:36]} 35. h5 {[%clk 0:01:17]}  Rf8 {[%clk 0:00:22]} 36. Rxf8+ {[%clk 0:01:08]}  Kxf8 {[%clk 0:00:23]} 37. h6 {[%clk 0:01:06]}  gxh6 {[%clk 0:00:01]} 38. Rf7+ {[%clk 0:01:04]}  Kg8 {[%clk 0:00:01]} 39. Rxf6 {[%clk 0:01:04]}  Kg7 {[%clk 0:00:02]} 40. Rb6 {[%clk 0:01:03]}  a4 {[%clk 0:00:01]} 41. bxa4 {[%clk 0:01:02]}  Rxa4 {[%clk 0:00:02]} 42. Bd3 {[%clk 0:01:00]}  Ra3 {[%clk 0:00:02]} 43. Be2 {[%clk 0:00:59]}  Ra2 {[%clk 0:00:02]} 44. Bf3 {[%clk 0:00:58]}  Ra3 {[%clk 0:00:02]} 45. g4 {[%clk 0:00:58]}  Ra4 {[%clk 0:00:02]} 46. Kg3 {[%clk 0:00:57]}  Kh7 {[%clk 0:00:03]} 47. Rc6 {[%clk 0:00:56]}  Kg7 {[%clk 0:00:03]} 48. Bd5 {[%clk 0:00:54]}  Ra3+ {[%clk 0:00:03]} 49. f3 {[%clk 0:00:54]}  Ra4 {[%clk 0:00:03]} 50. Be4 {[%clk 0:00:53]}  Ra5 {[%clk 0:00:02]} 51. Rg6+ {[%clk 0:00:52]}  Kf7 {[%clk 0:00:02]} 52. Rxh6 {[%clk 0:00:53]}  Kg7 {[%clk 0:00:02]} 53. Rh5 {[%clk 0:00:52]} 1-0


[Site "https://www.chess.com"]

[Event "Early Titled Tuesday Blitz | February 8 2022"]
[White "Dovbnia, Nikita"]
[Black "Manukian, Artak"]
[WhiteFideId "54104599"]
[BlackFideId "13301373"]
[WhiteElo "2111"]
[BlackElo "2430"]
[Result "1-0"]
[Round "02"]
[TimeControl "180+1"]
[Date "2022.02.08"]
[WhiteClock "0:00:51"]
[BlackClock "0:01:54"]

1. Nf3 {[%clk 0:03:00]}  g6 {[%clk 0:02:56]} 2. g3 {[%clk 0:02:57]}  Bg7 {[%clk 0:02:57]} 3. Bg2 {[%clk 0:02:58]}  d5 {[%clk 0:02:57]} 4. O-O {[%clk 0:02:58]}  Nf6 {[%clk 0:02:56]} 5. d4 {[%clk 0:02:59]}  O-O {[%clk 0:02:57]} 6. b3 {[%clk 0:02:49]}  Bf5 {[%clk 0:02:55]} 7. Bb2 {[%clk 0:02:50]}  c6 {[%clk 0:02:54]} 8. e3 {[%clk 0:02:50]}  a5 {[%clk 0:02:53]} 9. a4 {[%clk 0:02:47]}  Na6 {[%clk 0:02:50]} 10. Nbd2 {[%clk 0:02:40]}  Nb4 {[%clk 0:02:49]} 11. Rc1 {[%clk 0:02:18]}  Ne4 {[%clk 0:02:35]} 12. Nh4 {[%clk 0:02:14]}  Nxd2 {[%clk 0:02:31]} 13. Qxd2 {[%clk 0:02:10]}  Be4 {[%clk 0:02:31]} 14. f3 {[%clk 0:01:48]}  Bf5 {[%clk 0:02:31]} 15. Nxf5 {[%clk 0:01:48]}  gxf5 {[%clk 0:02:32]} 16. c3 {[%clk 0:01:42]}  Na6 {[%clk 0:02:31]} 17. Ba3 {[%clk 0:01:42]}  Re8 {[%clk 0:02:30]} 18. f4 {[%clk 0:01:41]}  e6 {[%clk 0:02:29]} 19. Kh1 {[%clk 0:01:39]}  Bf8 {[%clk 0:02:29]} 20. Bxf8 {[%clk 0:01:38]}  Rxf8 {[%clk 0:02:30]} 21. Rg1 {[%clk 0:01:35]}  Kh8 {[%clk 0:02:29]} 22. Bf1 {[%clk 0:01:33]}  Rg8 {[%clk 0:02:28]} 23. Bd3 {[%clk 0:01:22]}  Rg7 {[%clk 0:02:17]} 24. Rg2 {[%clk 0:01:18]}  Nc7 {[%clk 0:02:10]} 25. Rcg1 {[%clk 0:01:17]}  Qf6 {[%clk 0:02:06]} 26. g4 {[%clk 0:01:13]}  fxg4 {[%clk 0:02:05]} 27. Rxg4 {[%clk 0:01:14]}  Rag8 {[%clk 0:02:04]} 28. Qe2 {[%clk 0:01:03]}  Ne8 {[%clk 0:01:58]} 29. Qf3 {[%clk 0:00:57]}  Nd6 {[%clk 0:01:54]} 30. Qh3 {[%clk 0:00:53]}  Rxg4 {[%clk 0:01:54]} 31. Qxh7# {[%clk 0:00:51]} 1-0


[Site "https://www.chess.com"]

[Event "Early Titled Tuesday Blitz | February 8 2022"]
[White "Fawzy, Adham"]
[Black "Vlassov, Nikolai"]
[WhiteFideId "10613129"]
[BlackFideId "4103360"]
[WhiteElo "2510"]
[BlackElo "2407"]
[Result "1-0"]
[Round "02"]
[TimeControl "180+1"]
[Date "2022.02.08"]
[WhiteClock "0:00:25"]
[BlackClock "0:00:04"]

1. e4 {[%clk 0:03:00]}  Nc6 {[%clk 0:02:59]} 2. Nf3 {[%clk 0:03:00]}  d5 {[%clk 0:02:59]} 3. exd5 {[%clk 0:03:00]}  Qxd5 {[%clk 0:03:00]} 4. Nc3 {[%clk 0:03:00]}  Qa5 {[%clk 0:03:00]} 5. g3 {[%clk 0:02:57]}  Nh6 {[%clk 0:02:59]} 6. Bg2 {[%clk 0:02:57]}  Bg4 {[%clk 0:02:58]} 7. h3 {[%clk 0:02:57]}  Bh5 {[%clk 0:02:48]} 8. d3 {[%clk 0:02:56]}  O-O-O {[%clk 0:02:48]} 9. O-O {[%clk 0:02:57]}  e5 {[%clk 0:02:39]} 10. Bd2 {[%clk 0:02:57]}  Bg6 {[%clk 0:02:26]} 11. Re1 {[%clk 0:02:44]}  Nf5 {[%clk 0:02:15]} 12. a3 {[%clk 0:02:21]}  Qc5 {[%clk 0:02:06]} 13. b4 {[%clk 0:02:18]}  Qd6 {[%clk 0:02:03]} 14. b5 {[%clk 0:02:19]}  Ncd4 {[%clk 0:01:58]} 15. Nxe5 {[%clk 0:02:19]}  f6 {[%clk 0:01:49]} 16. Nc4 {[%clk 0:02:15]}  Qd7 {[%clk 0:01:39]} 17. Na5 {[%clk 0:02:15]}  Nd6 {[%clk 0:01:35]} 18. Bf4 {[%clk 0:02:16]}  N4xb5 {[%clk 0:01:23]} 19. Nxb5 {[%clk 0:02:14]}  Qxb5 {[%clk 0:01:22]} 20. Nxb7 {[%clk 0:02:14]}  Nxb7 {[%clk 0:01:21]} 21. Rb1 {[%clk 0:02:14]}  Qh5 {[%clk 0:01:03]} 22. Rxb7 {[%clk 0:02:06]}  Qxd1 {[%clk 0:01:01]} 23. Rxc7+ {[%clk 0:02:00]}  Kb8 {[%clk 0:01:02]} 24. Rxd1 {[%clk 0:01:51]}  Bd6 {[%clk 0:01:01]} 25. Rb7+ {[%clk 0:01:51]}  Kc8 {[%clk 0:01:00]} 26. Bxd6 {[%clk 0:01:40]}  Rxd6 {[%clk 0:01:00]} 27. Rdb1 {[%clk 0:01:41]}  Rhd8 {[%clk 0:00:58]} 28. Rxa7 {[%clk 0:01:40]}  R6d7 {[%clk 0:00:45]} 29. Ra8+ {[%clk 0:01:32]}  Kc7 {[%clk 0:00:46]} 30. Rb7+ {[%clk 0:01:32]}  Kd6 {[%clk 0:00:47]} 31. Rxd8 {[%clk 0:01:32]}  Rxd8 {[%clk 0:00:46]} 32. a4 {[%clk 0:01:10]}  Rc8 {[%clk 0:00:45]} 33. Rb2 {[%clk 0:01:10]}  Bf7 {[%clk 0:00:38]} 34. a5 {[%clk 0:01:09]}  Rc3 {[%clk 0:00:35]} 35. a6 {[%clk 0:00:50]}  Ra3 {[%clk 0:00:35]} 36. Bb7 {[%clk 0:00:51]}  Kc5 {[%clk 0:00:34]} 37. c4 {[%clk 0:00:50]}  Bg6 {[%clk 0:00:28]} 38. Rd2 {[%clk 0:00:45]}  Kd4 {[%clk 0:00:24]} 39. Kg2 {[%clk 0:00:39]}  Ra1 {[%clk 0:00:12]} 40. g4 {[%clk 0:00:38]}  Kc3 {[%clk 0:00:12]} 41. Re2 {[%clk 0:00:32]}  Bxd3 {[%clk 0:00:13]} 42. Re7 {[%clk 0:00:32]}  Bxc4 {[%clk 0:00:07]} 43. Rxg7 {[%clk 0:00:31]}  Bd3 {[%clk 0:00:04]} 44. Rc7+ {[%clk 0:00:24]}  Kb4 {[%clk 0:00:03]} 45. Rf7 {[%clk 0:00:21]}  Bf1+ {[%clk 0:00:03]} 46. Kg3 {[%clk 0:00:21]}  Ra3+ {[%clk 0:00:03]} 47. f3 {[%clk 0:00:22]}  Bxa6 {[%clk 0:00:03]} 48. Bxa6 {[%clk 0:00:22]}  Rxa6 {[%clk 0:00:04]} 49. Rxh7 {[%clk 0:00:23]}  Kc5 {[%clk 0:00:04]} 50. Rh6 {[%clk 0:00:23]}  Kd5 {[%clk 0:00:04]} 51. g5 {[%clk 0:00:24]}  Ra1 {[%clk 0:00:04]} 52. Rxf6 {[%clk 0:00:24]}  Rg1+ {[%clk 0:00:04]} 53. Kf4 {[%clk 0:00:24]}  Rh1 {[%clk 0:00:04]} 54. Kg4 {[%clk 0:00:24]}  Rg1+ {[%clk 0:00:04]} 55. Kh5 {[%clk 0:00:25]}  Ke5 {[%clk 0:00:04]} 56. h4 {[%clk 0:00:25]} 1-0


[Site "https://www.chess.com"]

[Event "Early Titled Tuesday Blitz | February 8 2022"]
[White "Fier, Alexandr"]
[Black "Chigaev, Maksim"]
[WhiteFideId "2107139"]
[BlackFideId "4108116"]
[WhiteElo "2569"]
[BlackElo "2502"]
[Result "1-0"]
[Round "02"]
[TimeControl "180+1"]
[Date "2022.02.08"]
[WhiteClock "0:01:39"]
[BlackClock "0:00:04"]

1. d4 {[%clk 0:03:00]}  Nf6 {[%clk 0:03:00]} 2. Bg5 {[%clk 0:03:00]}  g6 {[%clk 0:02:58]} 3. Bxf6 {[%clk 0:03:00]}  exf6 {[%clk 0:02:59]} 4. e3 {[%clk 0:03:00]}  d5 {[%clk 0:03:00]} 5. g3 {[%clk 0:03:00]}  h5 {[%clk 0:03:00]} 6. h4 {[%clk 0:03:00]}  c6 {[%clk 0:02:59]} 7. Bg2 {[%clk 0:03:00]}  Bg4 {[%clk 0:03:00]} 8. Ne2 {[%clk 0:03:01]}  Bd6 {[%clk 0:02:56]} 9. Nd2 {[%clk 0:03:01]}  Nd7 {[%clk 0:02:55]} 10. c4 {[%clk 0:02:59]}  dxc4 {[%clk 0:02:53]} 11. Nxc4 {[%clk 0:03:00]}  Bb4+ {[%clk 0:02:53]} 12. Kf1 {[%clk 0:03:00]}  Nb6 {[%clk 0:02:53]} 13. Qb3 {[%clk 0:02:58]}  Nxc4 {[%clk 0:02:40]} 14. Qxb4 {[%clk 0:02:55]}  Bxe2+ {[%clk 0:02:36]} 15. Kxe2 {[%clk 0:02:55]}  Nb6 {[%clk 0:02:26]} 16. Rhc1 {[%clk 0:02:51]}  Qe7 {[%clk 0:02:22]} 17. Qxe7+ {[%clk 0:02:51]}  Kxe7 {[%clk 0:02:23]} 18. Rc5 {[%clk 0:02:52]}  Rhd8 {[%clk 0:02:17]} 19. b4 {[%clk 0:02:51]}  a6 {[%clk 0:02:14]} 20. a4 {[%clk 0:02:49]}  f5 {[%clk 0:02:10]} 21. Kd3 {[%clk 0:02:43]}  Nd7 {[%clk 0:01:59]} 22. Rc3 {[%clk 0:02:38]}  Kd6 {[%clk 0:01:49]} 23. Rb3 {[%clk 0:02:35]}  Kc7 {[%clk 0:01:35]} 24. Rc1 {[%clk 0:02:32]}  Nb6 {[%clk 0:01:33]} 25. b5 {[%clk 0:02:28]}  Nxa4 {[%clk 0:01:33]} 26. bxc6 {[%clk 0:02:26]}  b5 {[%clk 0:01:33]} 27. d5 {[%clk 0:02:09]}  Ra7 {[%clk 0:01:19]} 28. Kd4 {[%clk 0:02:08]}  Kd6 {[%clk 0:01:19]} 29. f3 {[%clk 0:02:07]}  Re8 {[%clk 0:01:04]} 30. e4 {[%clk 0:02:07]}  Rc7 {[%clk 0:00:44]} 31. Re3 {[%clk 0:02:04]}  f6 {[%clk 0:00:29]} 32. Rce1 {[%clk 0:02:02]}  Rce7 {[%clk 0:00:21]} 33. exf5 {[%clk 0:01:37]}  Rxe3 {[%clk 0:00:20]} 34. Rxe3 {[%clk 0:01:38]}  Rxe3 {[%clk 0:00:21]} 35. Kxe3 {[%clk 0:01:39]}  gxf5 {[%clk 0:00:21]} 36. g4 {[%clk 0:01:40]}  b4 {[%clk 0:00:11]} 37. gxh5 {[%clk 0:01:38]}  b3 {[%clk 0:00:07]} 38. Kd2 {[%clk 0:01:39]}  b2 {[%clk 0:00:06]} 39. Kc2 {[%clk 0:01:39]}  Nc3 {[%clk 0:00:03]} 40. Kxb2 {[%clk 0:01:39]}  Nxd5 {[%clk 0:00:04]} 41. h6 {[%clk 0:01:39]}  Nf4 {[%clk 0:00:04]} 42. h5 {[%clk 0:01:39]} 1-0


[Site "https://www.chess.com"]

[Event "Early Titled Tuesday Blitz | February 8 2022"]
[White "Flis, Pawel"]
[Black "Berezin, Viktor"]
[WhiteFideId "1112864"]
[BlackFideId "14107872"]
[WhiteElo "1735"]
[BlackElo "2310"]
[Result "0-1"]
[Round "02"]
[TimeControl "180+1"]
[Date "2022.02.08"]
[WhiteClock "0:00:06"]
[BlackClock "0:00:17"]

1. e4 {[%clk 0:03:00]}  d5 {[%clk 0:02:51]} 2. exd5 {[%clk 0:02:54]}  Nf6 {[%clk 0:02:47]} 3. d4 {[%clk 0:02:54]}  Bg4 {[%clk 0:02:34]} 4. Nf3 {[%clk 0:02:51]}  Qxd5 {[%clk 0:02:21]} 5. Be2 {[%clk 0:02:50]}  Nbd7 {[%clk 0:02:04]} 6. O-O {[%clk 0:02:49]}  e6 {[%clk 0:01:54]} 7. c4 {[%clk 0:02:49]}  Qa5 {[%clk 0:01:51]} 8. Nc3 {[%clk 0:02:42]}  c6 {[%clk 0:01:50]} 9. h3 {[%clk 0:02:40]}  Bh5 {[%clk 0:01:49]} 10. Ne5 {[%clk 0:02:29]}  Nxe5 {[%clk 0:01:41]} 11. dxe5 {[%clk 0:02:22]}  Qxe5 {[%clk 0:01:25]} 12. Bxh5 {[%clk 0:02:14]}  Qxh5 {[%clk 0:01:24]} 13. Qb3 {[%clk 0:02:14]}  O-O-O {[%clk 0:01:22]} 14. Be3 {[%clk 0:02:06]}  Bc5 {[%clk 0:01:21]} 15. Bxc5 {[%clk 0:02:04]}  Qxc5 {[%clk 0:01:21]} 16. Rad1 {[%clk 0:02:00]}  e5 {[%clk 0:01:14]} 17. Na4 {[%clk 0:01:55]}  Qa5 {[%clk 0:00:57]} 18. a3 {[%clk 0:01:33]}  Qc7 {[%clk 0:00:52]} 19. Qe3 {[%clk 0:01:23]}  Kb8 {[%clk 0:00:41]} 20. b4 {[%clk 0:01:21]}  Rhe8 {[%clk 0:00:37]} 21. Nc5 {[%clk 0:01:18]}  Nd7 {[%clk 0:00:34]} 22. Ne4 {[%clk 0:01:12]}  f5 {[%clk 0:00:32]} 23. Nd6 {[%clk 0:01:11]}  Rf8 {[%clk 0:00:29]} 24. c5 {[%clk 0:01:04]}  e4 {[%clk 0:00:27]} 25. Qg5 {[%clk 0:01:01]}  Ne5 {[%clk 0:00:25]} 26. Rb1 {[%clk 0:00:42]}  h6 {[%clk 0:00:22]} 27. Qf4 {[%clk 0:00:32]}  Nd3 {[%clk 0:00:21]} 28. Qe3 {[%clk 0:00:33]}  g5 {[%clk 0:00:19]} 29. b5 {[%clk 0:00:32]}  Nxc5 {[%clk 0:00:14]} 30. Qxc5 {[%clk 0:00:28]}  Qxd6 {[%clk 0:00:11]} 31. Qxa7+ {[%clk 0:00:26]}  Kxa7 {[%clk 0:00:11]} 32. b6+ {[%clk 0:00:25]}  Kb8 {[%clk 0:00:11]} 33. a4 {[%clk 0:00:26]}  e3 {[%clk 0:00:10]} 34. a5 {[%clk 0:00:27]}  exf2+ {[%clk 0:00:10]} 35. Rxf2 {[%clk 0:00:26]}  f4 {[%clk 0:00:11]} 36. a6 {[%clk 0:00:25]}  bxa6 {[%clk 0:00:12]} 37. Ra2 {[%clk 0:00:22]}  Kb7 {[%clk 0:00:11]} 38. Rba1 {[%clk 0:00:21]}  Qc5+ {[%clk 0:00:11]} 39. Kh2 {[%clk 0:00:20]}  Qxb6 {[%clk 0:00:12]} 40. Re1 {[%clk 0:00:17]}  f3 {[%clk 0:00:13]} 41. gxf3 {[%clk 0:00:17]}  Rxf3 {[%clk 0:00:11]} 42. Kg2 {[%clk 0:00:16]}  Rf7 {[%clk 0:00:10]} 43. Ree2 {[%clk 0:00:13]}  Rdf8 {[%clk 0:00:10]} 44. Reb2 {[%clk 0:00:13]}  Rf5 {[%clk 0:00:10]} 45. Rxb6+ {[%clk 0:00:12]}  Kxb6 {[%clk 0:00:11]} 46. Rb2+ {[%clk 0:00:12]}  Rb5 {[%clk 0:00:10]} 47. Rd2 {[%clk 0:00:12]}  Rf7 {[%clk 0:00:08]} 48. Rd8 {[%clk 0:00:12]}  a5 {[%clk 0:00:09]} 49. Rb8+ {[%clk 0:00:12]}  Rb7 {[%clk 0:00:10]} 50. Ra8 {[%clk 0:00:11]}  Rb4 {[%clk 0:00:08]} 51. Kg3 {[%clk 0:00:10]}  a4 {[%clk 0:00:08]} 52. Kf3 {[%clk 0:00:09]}  Kc5 {[%clk 0:00:09]} 53. Ke3 {[%clk 0:00:09]}  Rb3+ {[%clk 0:00:09]} 54. Ke4 {[%clk 0:00:09]}  a3 {[%clk 0:00:10]} 55. Ke5 {[%clk 0:00:09]}  Kc4 {[%clk 0:00:11]} 56. Ra4+ {[%clk 0:00:08]}  Kc3 {[%clk 0:00:12]} 57. h4 {[%clk 0:00:07]}  Kb2 {[%clk 0:00:13]} 58. hxg5 {[%clk 0:00:07]}  hxg5 {[%clk 0:00:14]} 59. Kf5 {[%clk 0:00:07]}  a2 {[%clk 0:00:15]} 60. Kxg5 {[%clk 0:00:07]}  a1=Q {[%clk 0:00:16]} 61. Rxa1 {[%clk 0:00:07]}  Kxa1 {[%clk 0:00:16]} 62. Kf6 {[%clk 0:00:08]}  Re3 {[%clk 0:00:16]} 63. Kg6 {[%clk 0:00:06]}  c5 {[%clk 0:00:17]} 64. Kg5 {[%clk 0:00:06]}  c4 {[%clk 0:00:17]} 0-1


[Site "https://www.chess.com"]

[Event "Early Titled Tuesday Blitz | February 8 2022"]
[White "Fries-Nielsen, Jens Ove"]
[Black "Zhigalko, Sergei"]
[WhiteFideId "1400142"]
[BlackFideId "13502956"]
[WhiteElo "2599"]
[BlackElo "2662"]
[Result "0-1"]
[Round "02"]
[TimeControl "180+1"]
[Date "2022.02.08"]
[WhiteClock "0:00:44"]
[BlackClock "0:00:05"]

1. d4 {[%clk 0:03:00]}  Nf6 {[%clk 0:02:58]} 2. e3 {[%clk 0:03:01]}  e6 {[%clk 0:02:58]} 3. Nc3 {[%clk 0:03:01]}  d5 {[%clk 0:02:53]} 4. g4 {[%clk 0:03:01]}  Bb4 {[%clk 0:02:46]} 5. Bd3 {[%clk 0:02:53]}  c5 {[%clk 0:02:40]} 6. a3 {[%clk 0:02:53]}  Bxc3+ {[%clk 0:02:39]} 7. bxc3 {[%clk 0:02:53]}  c4 {[%clk 0:02:40]} 8. Bf1 {[%clk 0:02:51]}  Ne4 {[%clk 0:02:36]} 9. Bd2 {[%clk 0:02:49]}  Qh4 {[%clk 0:02:29]} 10. Qf3 {[%clk 0:02:48]}  O-O {[%clk 0:02:25]} 11. Ne2 {[%clk 0:02:48]}  f5 {[%clk 0:02:23]} 12. g5 {[%clk 0:02:33]}  Nxg5 {[%clk 0:02:09]} 13. Qg2 {[%clk 0:02:33]}  Ne4 {[%clk 0:02:03]} 14. Rg1 {[%clk 0:02:29]}  Rf7 {[%clk 0:02:01]} 15. Nf4 {[%clk 0:02:29]}  Nc6 {[%clk 0:01:55]} 16. Ke2 {[%clk 0:02:27]}  Nxd2 {[%clk 0:01:14]} 17. Kxd2 {[%clk 0:02:25]}  Bd7 {[%clk 0:01:15]} 18. f3 {[%clk 0:02:25]}  Re8 {[%clk 0:00:57]} 19. Be2 {[%clk 0:02:22]}  Ree7 {[%clk 0:00:45]} 20. Raf1 {[%clk 0:02:14]}  Rf6 {[%clk 0:00:44]} 21. Bd1 {[%clk 0:02:04]}  Rh6 {[%clk 0:00:44]} 22. Rf2 {[%clk 0:02:03]}  Be8 {[%clk 0:00:37]} 23. Qf1 {[%clk 0:02:03]}  Qf6 {[%clk 0:00:31]} 24. Rfg2 {[%clk 0:02:03]}  Kf8 {[%clk 0:00:29]} 25. Qf2 {[%clk 0:01:59]}  Nb8 {[%clk 0:00:22]} 26. Qg3 {[%clk 0:01:58]}  Nd7 {[%clk 0:00:22]} 27. e4 {[%clk 0:01:58]}  fxe4 {[%clk 0:00:14]} 28. fxe4 {[%clk 0:01:58]}  dxe4 {[%clk 0:00:12]} 29. Rf2 {[%clk 0:01:57]}  Rf7 {[%clk 0:00:08]} 30. Rgf1 {[%clk 0:01:52]}  Kg8 {[%clk 0:00:08]} 31. Be2 {[%clk 0:01:35]}  Qh4 {[%clk 0:00:07]} 32. Qg2 {[%clk 0:01:30]}  b5 {[%clk 0:00:06]} 33. Qxe4 {[%clk 0:01:28]}  Rhf6 {[%clk 0:00:05]} 34. Qe3 {[%clk 0:01:23]}  Qh6 {[%clk 0:00:05]} 35. Bg4 {[%clk 0:01:20]}  Nf8 {[%clk 0:00:05]} 36. d5 {[%clk 0:01:09]}  exd5 {[%clk 0:00:04]} 37. Qxe8 {[%clk 0:01:06]}  Rxf4 {[%clk 0:00:04]} 38. Rxf4 {[%clk 0:01:02]}  Rxf4 {[%clk 0:00:05]} 39. Ke1 {[%clk 0:00:44]}  Re4+ {[%clk 0:00:05]} 0-1


[Site "https://www.chess.com"]

[Event "Early Titled Tuesday Blitz | February 8 2022"]
[White "Gabdrakhmanov, Azat"]
[Black "Bacrot, Etienne"]
[WhiteFideId "34189197"]
[BlackFideId "605506"]
[WhiteElo "2279"]
[BlackElo "2673"]
[Result "0-1"]
[Round "02"]
[TimeControl "180+1"]
[Date "2022.02.08"]
[WhiteClock "0:00:04"]
[BlackClock "0:00:12"]

1. e4 {[%clk 0:03:00]}  c5 {[%clk 0:02:59]} 2. Nf3 {[%clk 0:02:57]}  d6 {[%clk 0:02:59]} 3. d4 {[%clk 0:02:58]}  cxd4 {[%clk 0:02:59]} 4. Nxd4 {[%clk 0:02:59]}  Nf6 {[%clk 0:03:00]} 5. Nc3 {[%clk 0:02:59]}  Nc6 {[%clk 0:03:01]} 6. Bg5 {[%clk 0:02:59]}  e6 {[%clk 0:02:58]} 7. Qd2 {[%clk 0:02:59]}  a6 {[%clk 0:02:50]} 8. f4 {[%clk 0:02:58]}  Bd7 {[%clk 0:02:50]} 9. O-O-O {[%clk 0:02:57]}  Be7 {[%clk 0:02:46]} 10. Nxc6 {[%clk 0:02:51]}  Bxc6 {[%clk 0:02:42]} 11. Bd3 {[%clk 0:02:50]}  Qa5 {[%clk 0:02:37]} 12. Kb1 {[%clk 0:02:45]}  h6 {[%clk 0:02:31]} 13. Bh4 {[%clk 0:02:39]}  b5 {[%clk 0:02:26]} 14. e5 {[%clk 0:02:32]}  b4 {[%clk 0:02:17]} 15. Ne2 {[%clk 0:01:24]}  dxe5 {[%clk 0:02:11]} 16. fxe5 {[%clk 0:01:25]}  Qxe5 {[%clk 0:02:10]} 17. Rhf1 {[%clk 0:01:16]}  a5 {[%clk 0:01:55]} 18. Rde1 {[%clk 0:01:12]}  Qc5 {[%clk 0:01:44]} 19. Nf4 {[%clk 0:00:57]}  g5 {[%clk 0:01:14]} 20. Nxe6 {[%clk 0:00:31]}  fxe6 {[%clk 0:01:13]} 21. Rxe6 {[%clk 0:00:32]}  gxh4 {[%clk 0:00:46]} 22. Rfxf6 {[%clk 0:00:26]}  Bd5 {[%clk 0:00:42]} 23. Re1 {[%clk 0:00:25]}  O-O-O {[%clk 0:00:40]} 24. Ra6 {[%clk 0:00:23]}  Bb7 {[%clk 0:00:34]} 25. Rae6 {[%clk 0:00:21]}  Bg5 {[%clk 0:00:31]} 26. Qe2 {[%clk 0:00:21]}  Kb8 {[%clk 0:00:29]} 27. Ba6 {[%clk 0:00:19]}  Bd5 {[%clk 0:00:26]} 28. Re5 {[%clk 0:00:17]}  Rhf8 {[%clk 0:00:23]} 29. Bd3 {[%clk 0:00:09]}  Bf6 {[%clk 0:00:21]} 30. Rf5 {[%clk 0:00:06]}  Qd4 {[%clk 0:00:19]} 31. c3 {[%clk 0:00:05]}  Qxd3+ {[%clk 0:00:16]} 32. Qxd3 {[%clk 0:00:05]}  Bxa2+ {[%clk 0:00:17]} 33. Kc2 {[%clk 0:00:04]}  Bb3+ {[%clk 0:00:13]} 34. Kd2 {[%clk 0:00:01]}  Bg5+ {[%clk 0:00:13]} 35. Rxg5 {[%clk 0:00:01]}  Rxd3+ {[%clk 0:00:13]} 36. Kxd3 {[%clk 0:00:02]}  hxg5 {[%clk 0:00:13]} 37. cxb4 {[%clk 0:00:03]}  a4 {[%clk 0:00:13]} 38. Re4 {[%clk 0:00:03]}  Rf2 {[%clk 0:00:12]} 39. Rg4 {[%clk 0:00:04]}  Rxb2 {[%clk 0:00:12]} 40. Kc3 {[%clk 0:00:04]}  Rc2+ {[%clk 0:00:12]} 41. Kd4 {[%clk 0:00:04]}  a3 {[%clk 0:00:12]} 42. Kd3 {[%clk 0:00:04]}  a2 {[%clk 0:00:12]} 0-1


[Site "https://www.chess.com"]